bitfinex/quotes_SOLUSD_20251214
["timestamp","ask_amount","ask_price","bid_price","bid_amount"]
[1765674052977,27.69245451,133.36,133.35,0.2]
[1765674054360,30.69647238,133.36,133.35,0.2]
[1765674054781,27.69245451,133.36,133.35,0.2]
[1765674055054,30.69647238,133.36,133.35,0.2]
[1765674055272,27.69245451,133.36,133.35,0.2]
[1765674059289,30.696698,133.36,133.35,0.2]
[1765674063285,30.69811806,133.36,133.35,0.2]
[1765674063866,27.69387457,133.36,133.35,0.2]
[1765674064073,27.69387457,133.36,133.35,0.9]
[1765674064074,24.81276835,133.36,133.35,0.9]
[1765674064285,24.67060678,133.36,133.35,0.9]
[1765674064589,24.81276835,133.36,133.35,0.9]
[1765674064787,24.81276835,133.36,133.35,0.2]
[1765674067796,26.08183486,133.36,133.35,0.2]
[1765674068575,26.79183486,133.36,133.35,0.2]
[1765674073597,26.08183486,133.36,133.35,0.2]
[1765674073809,23.92072864,133.36,133.35,0.9]
[1765674073984,8.22,133.36,133.35,0.9]
[1765674074183,7.49746696,133.38,133.35,0.9]
[1765674074386,7.49746696,133.38,133.36,0.7]
[1765674076413,7.49746696,133.38,133.35,0.2]
[1765674076588,10.36857318,133.38,133.35,0.9]
[1765674076912,19.90105114,133.37,133.35,0.9]
[1765674077290,19.19105114,133.37,133.35,0.9]
[1765674078913,7.49850029,133.36,133.35,0.9]
[1765674080509,7.49850029,133.36,133.35,0.2]
[1765674080510,9.65960651,133.36,133.35,0.2]
[1765674081300,9.65960651,133.36,133.35,0.9]
[1765674081690,18.46955143,133.36,133.35,0.2]
[1765674081890,19.17955143,133.36,133.35,0.2]
[1765674082090,16.30844521,133.36,133.35,0.2]
[1765674083191,18.46955143,133.36,133.35,0.2]
[1765674084020,19.17955143,133.36,133.35,0.2]
[1765674084412,18.46955143,133.36,133.35,0.2]
[1765674085115,19.17955143,133.36,133.35,0.2]
[1765674085716,18.46955143,133.36,133.35,0.2]
[1765674085917,20.34500934,133.36,133.35,0.2]
[1765674086091,19.68500934,133.36,133.35,0.2]
[1765674086290,20.34500934,133.36,133.35,0.2]
[1765674086695,20.62933248,133.36,133.35,0.2]
[1765674087105,30.69201889,133.36,133.35,0.2]
[1765674087304,24.52844521,133.36,133.35,0.2]
[1765674089525,25.20844521,133.36,133.35,0.2]
[1765674090816,28.86933248,133.36,133.35,0.2]
[1765674091124,51.40115868,133.36,133.35,0.2]
[1765674091323,48.02459455,133.36,133.35,0.2]
[1765674091490,51.40115868,133.36,133.35,0.2]
[1765674097525,54.77772281,133.36,133.35,1e-08]
[1765674097928,97.82135926,133.35,133.34,1e-08]
[1765674098245,16.59389307,133.34,133.33,1e-08]
[1765674098408,28.8704572,133.34,133.33,1e-08]
[1765674099027,31.8758293,133.34,133.33,1e-08]
[1765674099327,31.87866624,133.34,133.33,1e-08]
[1765674119227,31.19866624,133.34,133.33,1e-08]
[1765674119624,28.19329414,133.34,133.33,1e-08]
[1765674121652,28.86329414,133.34,133.33,1e-08]
[1765674122524,31.86821469,133.34,133.33,1e-08]
[1765674124254,28.19329414,133.34,133.33,1e-08]
[1765674124957,28.19329414,133.34,133.33,0.68000001]
[1765674127560,28.86329414,133.34,133.33,1e-08]
[1765674132572,172.81135926,133.33,133.32,1e-08]
[1765674132753,176.19076033,133.33,133.32,1e-08]
[1765674133262,179.19635825,133.33,133.32,1e-08]
[1765674133450,111.02654575,133.33,133.32,1e-08]
[1765674133644,111.69654575,133.33,133.32,1e-08]
[1765674133830,111.02654575,133.33,133.32,1e-08]
[1765674134256,111.69654575,133.33,133.32,1e-08]
[1765674134441,111.02654575,133.33,133.32,1e-08]
[1765674135561,111.02646158,133.33,133.32,1e-08]
[1765674137259,111.69646158,133.33,133.32,1e-08]
[1765674140060,36.02646158,133.33,133.32,1e-08]
[1765674140261,33.02086366,133.33,133.32,0.68000001]
[1765674140639,33.02086366,133.33,133.32,1e-08]
[1765674142050,33.69086366,133.33,133.32,1e-08]
[1765674142439,36.69623576,133.33,133.32,1e-08]
[1765674146057,35.47973008,133.33,133.32,1e-08]
[1765674148658,31.80435798,133.33,133.32,0.72000001]
[1765674149052,31.80435798,133.33,133.32,1e-08]
[1765674155274,34.80950429,133.33,133.32,1e-08]
[1765674157198,31.80435798,133.33,133.32,0.72000001]
[1765674157666,31.80435798,133.33,133.32,1e-08]
[1765674161980,31.80435798,133.33,133.32,0.72000001]
[1765674162753,29.64154676,133.33,133.32,0.72000001]
[1765674165384,31.80435798,133.33,133.32,0.72000001]
[1765674170891,31.80435798,133.33,133.32,1e-08]
[1765674171396,31.80406424,133.33,133.32,1e-08]
[1765674171899,29.64154676,133.33,133.32,1e-08]
[1765674172074,31.80406424,133.33,133.32,0.72000001]
[1765674174327,16.31013242,133.33,133.32,0.72000001]
[1765674174475,8.80994492,133.36,133.32,2.88251749]
[1765674175100,8.80994492,133.36,133.33,2.88251748]
[1765674175404,8.22,133.35,133.33,2.88251748]
[1765674175578,15.71922885,133.35,133.34,0.69]
[1765674177103,8.22,133.35,133.34,0.69]
[1765674180193,7.49815509,133.37,133.34,2.85251748]
[1765674180394,15.71815509,133.37,133.35,0.69]
[1765674184408,15.71815509,133.37,133.35,61.89]
[1765674184620,15.71815509,133.37,133.36,0.69]
[1765674220626,28.62375532,133.37,133.35,0.66]
[1765674221212,8.22,133.36,133.35,0.66]
[1765674221839,15.71850029,133.36,133.35,0.66]
[1765674222534,19.0941556,133.36,133.35,0.66]
[1765674224817,15.71850029,133.36,133.35,0.66]
[1765674234248,8.22,133.36,133.35,0.66]
[1765674240753,8.22,133.36,133.35,61.86]
[1765674241458,20.54357866,133.4,133.35,72.73471792]
[1765674241655,7.49648746,133.4,133.37,3.37565531]
[1765674241852,15.71648746,133.4,133.38,0.71]
[1765674242531,36.44966235,133.41,133.38,65.28565531]
[1765674242532,15.71593622,133.41,133.38,65.28565531]
[1765674243045,15.71593622,133.41,133.39,0.71]
[1765674247132,8.22,133.41,133.39,0.71]
[1765674248850,8.22,133.41,133.39,11.58016306]
[1765674249052,8.22,133.43,133.4,4.08339728]
[1765674249364,8.22,133.43,133.4,61.91]
[1765674249535,8.22,133.43,133.41,0.71]
[1765674249736,8.9,133.43,133.41,0.71]
[1765674250243,16.39463035,133.43,133.41,0.71]
[1765674251055,15.71463035,133.43,133.41,0.71]
[1765674251758,16.39463035,133.43,133.41,0.71]
[1765674252355,15.71463035,133.43,133.41,0.71]
[1765674254062,8.22,133.43,133.41,0.71]
[1765674254780,8.22,133.46,133.42,3.37339728]
[1765674254937,8.22,133.46,133.43,0.71]
[1765674255143,8.22,133.46,133.43,4.08339728]
[1765674255660,8.22,133.46,133.44,0.71]
[1765674255661,15.71291185,133.46,133.44,0.71]
[1765674259471,4.05339728,133.45,133.43,61.2]
[1765674259767,26.5666238,133.45,133.43,61.2]
[1765674259966,8.22,133.44,133.43,61.2]
[1765674261870,8.9,133.44,133.43,61.2]
[1765674262269,8.22,133.44,133.43,61.2]
[1765674262465,8.22,133.44,133.42,0.71]
[1765674263650,0.68,133.43,133.4,30.00939636]
[1765674263979,0.68,133.43,133.4,0.71]
[1765674264750,4.05339728,133.43,133.4,0.71]
[1765674265172,3.37339728,133.43,133.4,0.71]
[1765674265378,0.68,133.42,133.4,0.71]
[1765674265540,42.2873293,133.42,133.38,0.68]
[1765674265740,3.37339728,133.41,133.37,23.19998648]
[1765674265971,8.22,133.4,133.37,0.68]
[1765674266153,3.37339728,133.39,133.37,0.68]
[1765674266876,34.83676527,133.4,133.37,0.68]
[1765674267371,12.31339728,133.4,133.37,0.68]
[1765674267567,7.49681385,133.39,133.37,0.68]
[1765674267868,30.02018184,133.39,133.37,0.68]
[1765674268072,7.49681385,133.39,133.37,0.68]
[1765674269076,30.02018184,133.39,133.37,0.68]
[1765674270475,0.71,133.38,133.35,8.21873099]
[1765674270768,0.71,133.38,133.36,0.72]
[1765674270950,32.89002189,133.39,133.36,0.72]
[1765674274250,30.73018184,133.39,133.36,0.72]
[1765674279382,30.73018184,133.39,133.36,61.92]
[1765674279577,30.73018184,133.39,133.37,0.72]
[1765674283286,30.73018184,133.39,133.36,61.2]
[1765674283485,0.71,133.38,133.36,61.92]
[1765674284297,30.73018184,133.39,133.36,61.92]
[1765674284471,30.73018184,133.39,133.37,0.72]
[1765674284982,30.02018184,133.39,133.37,0.72]
[1765674285200,7.49681385,133.39,133.37,0.72]
[1765674285489,0.71,133.38,133.36,61.2]
[1765674285679,8.93,133.38,133.36,61.2]
[1765674285880,8.22,133.38,133.37,0.72]
[1765674287283,15.71737591,133.38,133.36,61.2]
[1765674287586,0.71,133.37,133.36,61.2]
[1765674288176,9.51994492,133.37,133.36,61.2]
[1765674288388,32.04838707,133.37,133.36,61.2]
[1765674288862,32.04838707,133.37,133.34,61.92]
[1765674289583,38.83659344,133.37,133.34,61.92]
[1765674289780,38.83659344,133.37,133.34,61.2]
[1765674289781,0.71,133.36,133.34,61.2]
[1765674290158,0.71,133.36,133.34,61.92]
[1765674290583,0.71,133.36,133.34,61.2]
[1765674291273,8.93,133.36,133.34,61.2]
[1765674292476,8.93,133.36,133.34,61.92]
[1765674294301,8.22,133.36,133.34,61.92]
[1765674294798,8.93,133.36,133.34,61.92]
[1765674295903,11.08985535,133.36,133.34,61.92]
[1765674297610,0.72,133.35,133.32,61.20000001]
[1765674297896,2.87985535,133.35,133.32,69.4007044]
[1765674298098,2.87985535,133.35,133.32,61.90000001]
[1765674298398,8.94,133.34,133.32,61.90000001]
[1765674298604,11.09985535,133.34,133.32,61.90000001]
[1765674299197,10.37985535,133.34,133.32,61.90000001]
[1765674299583,8.22,133.34,133.32,61.90000001]
[1765674299987,8.22,133.34,133.32,61.20000001]
[1765674300193,8.22,133.34,133.33,0.7]
[1765674301103,8.22,133.36,133.33,2.85985535]
[1765674301584,8.22,133.36,133.34,0.7]
[1765674303081,8.22,133.36,133.34,61.9]
[1765674310814,8.22,133.36,133.35,0.7]
[1765674311191,16.30697771,133.39,133.35,64.05985535]
[1765674311536,16.30697771,133.39,133.36,0.7]
[1765674313121,24.52697771,133.39,133.36,0.7]
[1765674313920,17.02994492,133.39,133.36,8.19845573]
[1765674314406,17.02994492,133.39,133.37,0.7]
[1765674314591,8.22,133.39,133.37,0.7]
[1765674314988,8.22,133.39,133.37,61.9]
[1765674315614,8.22,133.39,133.38,0.7]
[1765674322228,8.22,133.39,133.37,61.9]
[1765674322930,8.22,133.39,133.37,61.2]
[1765674323100,8.22,133.39,133.38,0.7]
[1765674325354,8.22,133.41,133.38,61.9]
[1765674325705,8.22,133.41,133.39,0.68]
[1765674327837,0.67,133.44,133.39,71.53611276]
[1765674328144,8.22,133.43,133.39,72.74931291]
[1765674328434,8.22,133.43,133.4,0.72]
[1765674328731,8.89,133.43,133.4,0.72]
[1765674332541,8.22,133.43,133.4,0.72]
[1765674332842,8.22,133.43,133.4,61.92]
[1765674333041,8.22,133.43,133.41,0.72]
[1765674333218,8.89,133.43,133.41,0.72]
[1765674334342,12.26270611,133.43,133.41,0.72]
[1765674335638,0.67,133.42,133.4,61.92]
[1765674335845,11.59270611,133.41,133.4,61.2]
[1765674336145,11.59270611,133.41,133.37,69.41769599]
[1765674336146,20.40265103,133.41,133.37,69.41769599]
[1765674336344,0.67,133.4,133.38,0.72]
[1765674341742,0.67,133.4,133.38,61.92]
[1765674344554,8.16627606,133.4,133.38,61.92]
[1765674355156,20.40397826,133.41,133.38,61.92]
[1765674355157,28.56986508,133.41,133.38,61.92]
[1765674355953,0.69,133.4,133.38,61.92]
[1765674360564,8.18630657,133.4,133.38,61.92]
[1765674361243,10.87033991,133.4,133.38,61.2]
[1765674361449,8.80994492,133.38,133.35,0.69]
[1765674361650,8.22,133.37,133.35,61.89]
[1765674361848,12.28403334,133.37,133.35,61.2]
[1765674362076,8.22,133.37,133.35,69.38895509]
[1765674362366,8.22,133.37,133.36,0.69]
[1765674363346,8.22,133.37,133.36,8.18850029]
[1765674364439,8.22,133.39,133.36,8.18850029]
[1765674364667,8.91,133.39,133.37,0.69]
[1765674370966,8.91,133.39,133.36,69.38850029]
[1765674371168,8.91,133.39,133.37,0.69]
[1765674371770,12.28403334,133.39,133.37,0.69]
[1765674379868,8.91,133.39,133.37,0.69]
[1765674389387,8.22,133.39,133.37,0.69]
[1765674389688,8.88,133.39,133.37,0.69]
[1765674390065,8.22,133.39,133.37,8.18784421]
[1765674390485,8.22,133.39,133.38,0.71]
[1765674408295,8.22,133.39,133.37,69.40784421]
[1765674408594,8.22,133.39,133.38,0.71]
[1765674416105,8.22,133.39,133.37,68.69784421]
[1765674416308,8.22,133.39,133.37,69.35784421]
[1765674416807,8.22,133.39,133.38,0.66]
[1765674417002,8.22,133.39,133.37,69.35784421]
[1765674417308,8.22,133.39,133.38,0.66]
[1765674418102,8.22,133.39,133.38,61.86]
[1765674418408,8.22,133.39,133.38,69.35737591]
[1765674420582,8.22,133.39,133.38,61.86]
[1765674427216,0.7,133.4,133.38,61.86]
[1765674430115,25.37124079,133.41,133.38,61.86]
[1765674430322,26.07124079,133.41,133.38,61.86]
[1765674430617,26.07124079,133.41,133.39,0.66]
[1765674433005,15.71593366,133.41,133.39,0.66]
[1765674433206,13.7470912,133.43,133.39,2.81937347]
[1765674433399,43.78538731,133.43,133.4,0.66]
[1765674433600,8.92,133.43,133.4,64.01937347]
[1765674434015,8.92,133.43,133.41,0.66]
[1765674435114,8.92,133.43,133.41,61.86]
[1765674441338,8.92,133.43,133.41,61.2]
[1765674441339,11.66931839,133.42,133.41,61.2]
[1765674442026,34.18930487,133.42,133.41,61.2]
[1765674443343,8.80994492,133.41,133.38,61.2]
[1765674443516,8.22,133.4,133.38,61.2]
[1765674443708,8.22,133.4,133.38,61.86]
[1765674443907,8.92,133.4,133.38,61.86]
[1765674444139,8.92,133.4,133.38,61.2]
[1765674447007,8.92,133.4,133.38,61.87]
[1765674448344,8.22,133.4,133.38,61.87]
[1765674449244,8.9,133.4,133.38,61.2]
[1765674451311,8.9,133.4,133.38,61.89]
[1765674451740,8.9,133.4,133.38,61.2]
[1765674453848,8.9,133.4,133.38,61.89]
[1765674454175,8.22,133.4,133.38,61.89]
[1765674458762,8.9,133.4,133.38,61.89]
[1765674461174,8.9,133.4,133.38,61.2]
[1765674461450,8.9,133.4,133.38,61.89]
[1765674461846,8.22,133.4,133.38,61.89]
[1765674462357,8.9,133.4,133.38,61.89]
[1765674463665,0.68,133.39,133.38,61.2]
[1765674466461,0.68,133.39,133.37,61.2]
[1765674466955,0.68,133.39,133.37,61.89]
[1765674467154,41.61396751,133.4,133.37,61.89]
[1765674467462,42.29396751,133.4,133.37,61.89]
[1765674468245,3.37419563,133.39,133.37,61.89]
[1765674469357,3.37419563,133.39,133.38,0.69]
[1765674472144,11.55104585,133.39,133.37,61.89]
[1765674472336,11.55104585,133.39,133.37,0.69]
[1765674473463,8.22,133.38,133.37,0.69]
[1765674490673,8.22,133.38,133.37,8.18793806]
[1765674490881,8.22,133.4,133.37,8.18793806]
[1765674491072,8.22,133.4,133.38,0.71]
[1765674492681,8.22,133.4,133.38,8.20712292]
[1765674492859,20.40414055,133.42,133.38,8.20712292]
[1765674493054,17.02994492,133.42,133.39,0.71]
[1765674494079,8.22,133.42,133.39,0.71]
[1765674494954,8.22,133.42,133.4,7.49625187]
[1765674495155,8.22,133.42,133.41,0.71]
[1765674502158,8.22,133.42,133.41,61.91]
[1765674505919,12.31319597,133.42,133.41,61.2]
[1765674508199,8.22,133.42,133.41,0.71]
[1765674513408,8.22,133.42,133.4,61.2]
[1765674513613,18.59402867,133.42,133.4,61.2]
[1765674513954,2.87855563,133.41,133.39,61.2]
[1765674517023,2.87855563,133.41,133.39,61.91]
[1765674519124,18.59402867,133.42,133.39,61.91]
[1765674520515,16.43547304,133.42,133.4,0.71]
[1765674521206,15.71547304,133.42,133.4,0.71]
[1765674522130,8.22,133.42,133.4,8.20623469]
[1765674522503,8.22,133.42,133.41,0.71]
[1765674525126,15.71521616,133.42,133.39,68.69652379]
[1765674525314,15.71521616,133.42,133.4,0.71]
[1765674525919,15.71521616,133.42,133.4,61.91]
[1765674526128,0.72,133.41,133.4,61.2]
[1765674526545,16.43521616,133.42,133.4,61.91]
[1765674526747,16.43521616,133.42,133.4,61.2]
[1765674526946,18.59377179,133.42,133.4,61.91]
[1765674527518,15.71521616,133.42,133.4,61.91]
[1765674529436,16.43521616,133.42,133.4,61.91]
[1765674530755,17.87411648,133.42,133.4,61.2]
[1765674530921,18.59411648,133.42,133.4,61.2]
[1765674531836,0.72,133.41,133.39,61.91]
[1765674534049,17.87411648,133.42,133.39,61.2]
[1765674534255,18.59411648,133.42,133.4,0.71]
[1765674534666,18.59411648,133.42,133.39,61.2]
[1765674534830,18.59411648,133.42,133.39,61.91]
[1765674535240,17.87411648,133.42,133.39,61.91]
[1765674535443,0.72,133.41,133.39,61.2]
[1765674535953,0.72,133.41,133.39,61.88]
[1765674536452,17.87411648,133.42,133.39,61.88]
[1765674536639,18.59411648,133.42,133.39,61.88]
[1765674537651,0.72,133.41,133.39,61.88]
[1765674537855,0.72,133.41,133.39,0.68]
[1765674538154,0.72,133.41,133.38,8.1771288]
[1765674538320,0.72,133.41,133.38,69.3771288]
[1765674538523,0.72,133.41,133.39,0.68]
[1765674539451,40.39410296,133.42,133.39,0.68]
[1765674539632,41.11410296,133.42,133.39,0.68]
[1765674540954,18.59411648,133.42,133.39,0.68]
[1765674542430,41.11410296,133.42,133.39,0.68]
[1765674543459,18.59411648,133.42,133.39,0.68]
[1765674543662,18.59411648,133.42,133.39,61.88]
[1765674546462,16.43521616,133.42,133.4,0.68]
[1765674547159,15.71521616,133.42,133.4,0.68]
[1765674547968,16.43521616,133.42,133.4,0.68]
[1765674550072,15.71521616,133.42,133.4,0.68]
[1765674552966,8.22,133.42,133.4,0.68]
[1765674561350,8.94,133.42,133.4,0.68]
[1765674561774,8.22,133.42,133.4,0.68]
[1765674572423,8.89,133.42,133.4,0.68]
[1765674573231,8.22,133.42,133.4,0.68]
[1765674581191,8.89,133.42,133.4,0.68]
[1765674584040,8.89,133.42,133.39,8.20676757]
[1765674584339,8.89,133.42,133.4,0.71]
[1765674586029,8.22,133.42,133.4,0.71]
[1765674586724,8.89,133.42,133.4,0.71]
[1765674590532,8.89,133.42,133.39,8.20676757]
[1765674592328,8.89,133.42,133.39,7.49676757]
[1765674592503,8.89,133.42,133.4,0.71]
[1765674597707,8.22,133.42,133.4,8.20614994]
[1765674599639,30.73829611,133.42,133.4,8.20614994]
[1765674601044,30.73829611,133.42,133.41,0.71]
[1765674601227,0.66,133.45,133.41,4.08255104]
[1765674601431,22.51491613,133.44,133.42,3.37255104]
[1765674601628,0.66,133.45,133.42,4.08255104]
[1765674601831,22.51322652,133.45,133.43,0.71]
[1765674603719,0.2,133.47,133.44,3.37255104]
[1765674603920,0.2,133.47,133.45,0.71]
[1765674604526,0.2,133.47,133.45,23.2181592]
[1765674606052,0.86,133.47,133.45,23.2181592]
[1765674606436,0.2,133.47,133.45,23.2181592]
[1765674607351,0.2,133.47,133.46,0.71]
[1765674612976,0.2,133.47,133.46,23.2181592]
[1765674613346,0.2,133.47,133.45,61.91]
[1765674613544,22.70984805,133.47,133.45,61.91]
[1765674613772,23.36984805,133.47,133.45,61.91]
[1765674614950,23.36984805,133.47,133.45,0.71]
[1765674617045,22.70984805,133.47,133.45,0.71]
[1765674618462,23.36984805,133.47,133.45,0.71]
[1765674618860,30.86234087,133.47,133.44,83.70984805]
[1765674619034,0.66,133.46,133.44,61.91]
[1765674619234,23.17153716,133.46,133.44,61.91]
[1765674619743,22.51153716,133.46,133.44,61.91]
[1765674619963,22.51153716,133.46,133.44,0.71]
[1765674626175,22.51153716,133.46,133.44,30.71550963]
[1765674626373,7.69249282,133.47,133.45,0.67]
[1765674626543,0.2,133.47,133.45,4.04255104]
[1765674626745,22.70984805,133.47,133.45,4.04255104]
[1765674626944,0.2,133.47,133.46,0.67]
[1765674627173,0.2,133.47,133.46,26.54902165]
[1765674628175,0.2,133.47,133.46,34.04190341]
[1765674632086,0.2,133.47,133.46,32.82563859]
[1765674635181,0.2,133.47,133.46,0.67]
[1765674639680,0.2,133.47,133.46,2.82650343]
[1765674639991,0.2,133.47,133.46,25.33466263]
[1765674640188,0.2,133.47,133.46,23.1781592]
[1765674641085,0.2,133.47,133.46,30.67104096]
[1765674641671,0.2,133.47,133.46,94.02754439]
[1765674650595,0.2,133.47,133.46,91.87104096]
[1765674650785,0.2,133.47,133.46,94.02754439]
[1765674651476,0.2,133.47,133.46,54.07463559]
[1765674652096,0.2,133.47,133.46,45.87463559]
[1765674652408,0.2,133.47,133.46,54.07463559]
[1765674653501,0.2,133.47,133.46,115.27463559]
[1765674655096,0.2,133.47,133.46,107.07463559]
[1765674655303,0.2,133.47,133.46,115.27463559]
[1765674655769,0.2,133.47,133.46,107.07463559]
[1765674659494,0.2,133.47,133.46,84.56647639]
[1765674661383,0.2,133.47,133.46,70.84938519]
[1765674662506,0.2,133.47,133.46,71.51938519]
[1765674664914,0.2,133.47,133.46,79.71938519]
[1765674665090,0.2,133.47,133.46,82.72002282]
[1765674665415,0.2,133.47,133.46,79.71938519]
[1765674667813,0.2,133.47,133.46,82.72002282]
[1765674668112,0.2,133.47,133.46,79.71938519]
[1765674669117,0.2,133.47,133.46,82.72002282]
[1765674669424,0.2,133.47,133.46,74.52002282]
[1765674669715,0.2,133.47,133.46,79.71938519]
[1765674670715,0.2,133.47,133.46,82.72002282]
[1765674671225,0.2,133.47,133.46,79.71938519]
[1765674673194,0.2,133.47,133.46,71.51938519]
[1765674673393,0.2,133.47,133.46,79.71938519]
[1765674674025,0.2,133.47,133.46,79.71867292]
[1765674678438,0.2,133.51,133.49,13.0470912]
[1765674678727,0.2,133.51,133.5,10.35579116]
[1765674678900,0.2,133.51,133.5,11.02579116]
[1765674679458,0.2,133.51,133.5,14.02507882]
[1765674679826,0.87,133.51,133.5,13.35507882]
[1765674680204,0.2,133.51,133.5,13.35507882]
[1765674680532,0.2,133.51,133.5,21.51571552]
[1765674681898,0.2,133.51,133.5,23.67150668]
[1765674683840,0.2,133.51,133.5,84.87150668]
[1765674692023,0.2,133.51,133.5,87.2904165]
[1765674707854,0.89,133.51,133.5,10.48992436]
[1765674708047,0.89,133.51,133.5,3.36524607]
[1765674708237,0.89,133.51,133.49,10.8562662]
[1765674708551,0.69,133.5,133.49,10.8562662]
[1765674709652,0.69,133.5,133.49,10.85866914]
[1765674714677,0.69,133.5,133.48,7.49175906]
[1765674714980,0.69,133.5,133.49,3.36764901]
[1765674715772,0.2,133.51,133.49,4.02764901]
[1765674716072,0.89,133.51,133.5,6.73529802]
[1765674717170,0.2,133.51,133.5,14.22593472]
[1765674717560,0.89,133.51,133.5,14.22593472]
[1765674718875,0.89,133.51,133.5,75.42593472]
[1765674721179,0.2,133.51,133.5,76.08593472]
[1765674721875,0.89,133.51,133.5,72.05828571]
[1765674722067,0.89,133.51,133.5,64.56764901]
[1765674723674,0.89,133.51,133.5,72.05828571]
[1765674724952,0.89,133.51,133.5,10.85828571]
[1765674725279,0.89,133.51,133.5,7.4906367]
[1765674725499,0.89,133.51,133.5,3.36764901]
[1765674727385,0.89,133.51,133.5,10.85828571]
[1765674730689,0.89,133.51,133.5,72.05828571]
[1765674738898,0.2,133.51,133.5,72.05828571]
[1765674745104,0.2,133.51,133.5,72.05719592]
[1765674753922,0.2,133.51,133.5,70.84527645]
[1765674758000,0.2,133.51,133.5,71.51527645]
[1765674758207,0.2,133.51,133.5,70.84527645]
[1765674758417,0.2,133.51,133.5,69.3606367]
[1765674758613,0.2,133.51,133.5,73.6699162]
[1765674763747,0.78,133.53,133.52,13.0470912]
[1765674763748,0.1,133.53,133.52,13.0470912]
[1765674764048,0.1,133.54,133.53,13.0470912]
[1765674764239,0.1,133.54,133.53,15.87173095]
[1765674764940,0.1,133.54,133.53,15.20173095]
[1765674766241,0.1,133.54,133.53,22.69068474]
[1765674769412,0.1,133.54,133.53,83.89068474]
[1765674770453,0.78,133.54,133.53,68.68895379]
[1765674770625,0.78,133.54,133.53,70.84359354]
[1765674770825,0.78,133.54,133.53,63.35463975]
[1765674774043,0.78,133.54,133.53,61.2]
[1765674775245,0.78,133.54,133.52,70.84397042]
[1765674778344,0.78,133.54,133.52,71.54397042]
[1765674778550,0.78,133.54,133.52,70.84397042]
[1765674780246,0.78,133.54,133.52,61.2]
[1765674781230,0.78,133.54,133.51,70.84459643]
[1765674781955,0.78,133.54,133.51,68.6899225]
[1765674782247,0.78,133.54,133.51,70.84459643]
[1765674782452,0.78,133.54,133.52,2.15467393]
[1765674783359,0.78,133.54,133.52,9.6439781]
[1765674783551,0.78,133.54,133.52,10.3439781]
[1765674785546,0.78,133.54,133.52,9.6439781]
[1765674787157,0.78,133.54,133.52,70.8439781]
[1765674787347,0.78,133.54,133.52,71.5439781]
[1765674789452,0.78,133.54,133.52,68.68930417]
[1765674791850,0.78,133.54,133.52,70.8439781]
[1765674792443,0.78,133.54,133.52,71.5439781]
[1765674792650,0.78,133.54,133.52,69.38930417]
[1765674792849,0.78,133.54,133.52,71.5439781]
[1765674793839,0.1,133.54,133.53,0.7]
[1765674794045,0.1,133.54,133.53,2.85467393]
[1765674794455,0.1,133.54,133.53,10.34362772]
[1765674794654,0.1,133.54,133.53,7.48895379]
[1765674795347,0.1,133.54,133.53,10.34362772]
[1765674795861,0.1,133.54,133.53,8.18895379]
[1765674796064,0.1,133.54,133.53,10.34362772]
[1765674798966,0.1,133.54,133.53,71.54362772]